fUSD/lending_fUSD_20260507
["ID","MTS","AMOUNT","RATE_DAILY","PERIOD"]
[421751778,1778105555000,-639.09,0.00012509,2]
[421751775,1778105555000,-109217.04972743,0.00012,2]
[421751774,1778105555000,-300.0,0.00011999,2]
[421751782,1778105555000,-255.0,0.00013079,2]
[421751776,1778105555000,-163.0,0.00012,2]
[421751777,1778105555000,-215.64,0.00012509,2]
[421751781,1778105555000,-300.13,0.00012772,2]
[421751780,1778105555000,-13874.59,0.00012757,2]
[421751800,1778105555000,-166.66,0.00013973,2]
[421751783,1778105555000,-420.0,0.00013172,2]
[421751784,1778105555000,-2000.0,0.00013177,2]
[421751787,1778105555000,-252.52,0.00013303,2]
[421751786,1778105555000,-5773.37,0.00013209,2]
[421751788,1778105555000,-197.68,0.00013327,2]
[421751790,1778105555000,-161.96,0.00013521,2]
[421751791,1778105555000,-150.0,0.00013584,2]
[421751789,1778105555000,-182.75,0.00013442,2]
[421751792,1778105555000,-200.0,0.00013699,2]
[421751785,1778105555000,-200.0,0.00013193,2]
[421751793,1778105555000,-166.66,0.00013699,2]
[421751794,1778105555000,-166.66,0.00013836,2]
[421751805,1778105555000,-2317.31426788,0.00014027,2]
[421751779,1778105555000,-1418.55,0.00012757,2]
[421751827,1778105555000,-151.0,0.00014225,2]
[421751795,1778105555000,-2500.0,0.00013928,2]
[421751840,1778105555000,-500.0,0.00014273,2]
[421751860,1778105555000,-500.0,0.000146,5]
[421751884,1778105555000,-1000.0,0.00014824,2]
[421751864,1778105555000,-1000.0,0.00014621,2]
[421751856,1778105555000,-283.55,0.00014581,2]
[421751861,1778105555000,-1000.0,0.00014621,2]
[421751863,1778105555000,-357.84244269,0.00014621,2]
[421751868,1778105555000,-2000.0,0.0001469,2]
[421751878,1778105555000,-2000.0,0.00014824,2]
[421751867,1778105555000,-350.0,0.00014687,2]
[421751879,1778105555000,-1000.0,0.00014824,2]
[421751870,1778105555000,-172.43213,0.000147,2]
[421751869,1778105555000,-322.813368,0.000147,2]
[421751859,1778105555000,-500.0,0.00014599,2]
[421751871,1778105555000,-1100.0,0.000147,5]
[421751872,1778105555000,-500.0,0.00014769,2]
[421751877,1778105555000,-1044.51161838,0.00014823,5]
[421751874,1778105555000,-1600.0,0.000148,5]
[421751873,1778105555000,-182.75,0.00014786,2]
[421751882,1778105555000,-1000.0,0.00014824,2]
[421751881,1778105555000,-1000.0,0.00014824,2]
[421751880,1778105555000,-1000.0,0.00014824,2]
[421751883,1778105555000,-1000.0,0.00014824,2]
[421751886,1778105555000,-1000.0,0.00014824,2]
[421751887,1778105555000,-1000.0,0.00014824,2]
[421751885,1778105555000,-1000.0,0.00014824,2]
[421751830,1778105555000,-189.83929851,0.00014227,2]
[421751876,1778105555000,-500.0,0.00014821,2]
[421751862,1778105555000,-501.06970518,0.00014621,2]
[421751875,1778105555000,-800.0,0.0001482,2]
[421751857,1778105555000,-151.0,0.00014596,2]
[421751858,1778105555000,-500.0,0.00014599,2]
[421751841,1778105555000,-500.0,0.00014273,2]
[421751829,1778105555000,-500.0,0.00014227,2]
[421751832,1778105555000,-501.73166366,0.00014227,2]
[421751834,1778105555000,-500.0,0.00014227,2]
[421751839,1778105555000,-166.66,0.00014261,2]
[421751833,1778105555000,-500.0,0.00014227,2]
[421751836,1778105555000,-294.4714192,0.00014228,2]
[421751835,1778105555000,-151.0,0.00014228,2]
[421751837,1778105555000,-166.66,0.00014247,2]
[421751838,1778105555000,-433.0,0.00014255,2]
[421751842,1778105555000,-587.0,0.0001446,2]
[421751843,1778105555000,-5157.26999034,0.00014485,2]
[421751831,1778105555000,-500.0,0.00014227,2]
[421751845,1778105555000,-92.95768636,0.00014521,7]
[421751854,1778105555000,-151.0,0.00014562,2]
[421751846,1778105555000,-156.30737109,0.00014558,2]
[421751866,1778105555000,-2000.0,0.0001468,2]
[421751865,1778105555000,-2000.0,0.0001468,2]
[421751855,1778105555000,-151.0,0.00014562,2]
[421751852,1778105555000,-153.6029,0.00014562,2]
[421751851,1778105555000,-151.0,0.00014562,2]
[421751850,1778105555000,-151.0,0.00014562,2]
[421751848,1778105555000,-500.0,0.00014561,2]
[421751853,1778105555000,-151.0,0.00014562,2]
[421751847,1778105555000,-151.0,0.00014559,2]
[421751844,1778105555000,-500.0,0.00014495,2]
[421751849,1778105555000,-2247.3921027,0.00014562,2]
[421751907,1778105556000,-506.67048616,0.000149,2]
[421751916,1778105556000,-300.0,0.00014999,2]
[421751909,1778105556000,-2200.0,0.000149,5]
[421751912,1778105556000,-350.0,0.00014968,2]
[421751922,1778105556000,-946162.71229635,0.00015,2]
[421751911,1778105556000,-252.52,0.00014966,2]
[421751913,1778105556000,-151.0,0.00014997,2]
[421751915,1778105556000,-300.0,0.00014999,2]
[421751920,1778105556000,-137581.95773791,0.00015,2]
[421751921,1778105556000,-151.0,0.00015,2]
[421751919,1778105556000,-1578.0,0.00015,5]
[421751918,1778105556000,-666.0,0.00014999,2]
[421751917,1778105556000,-300.0,0.00014999,2]
[421751923,1778105556000,-4583.09265919,0.00015,2]
[421751908,1778105556000,-5349.16698685,0.000149,2]
[421751924,1778105556000,-380.0,0.00015,2]
[421751914,1778105556000,-500.0,0.00014999,2]
[421751902,1778105556000,-2000.0,0.00014824,2]
[421751890,1778105556000,-1000.0,0.00014824,2]
[421751906,1778105556000,-5000.0,0.000149,2]
[421751926,1778105556000,-185109.63956369,0.00015,2]
[421751899,1778105556000,-1000.0,0.00014824,2]
[421751889,1778105556000,-1000.0,0.00014824,2]
[421751888,1778105556000,-1000.0,0.00014824,2]
[421751891,1778105556000,-1000.0,0.00014824,2]
[421751894,1778105556000,-1000.0,0.00014824,2]
[421751896,1778105556000,-1000.0,0.00014824,2]
[421751893,1778105556000,-1000.0,0.00014824,2]
[421751898,1778105556000,-1000.0,0.00014824,2]
[421751892,1778105556000,-1000.0,0.00014824,2]
[421751895,1778105556000,-1000.0,0.00014824,2]
[421751897,1778105556000,-1000.0,0.00014824,2]
[421751900,1778105556000,-1000.0,0.00014824,2]
[421751903,1778105556000,-2000.0,0.00014824,2]
[421751905,1778105556000,-350.0,0.00014828,2]
[421751901,1778105556000,-806.59534517,0.00014824,2]
[421751910,1778105556000,-290.4711059,0.00014908,2]
[421751904,1778105556000,-2000.0,0.00014824,2]
[421751927,1778105556000,-76118.40237105,0.00015,2]
[421751929,1778105556000,-5674.45584916,0.00015,2]
[421751925,1778105556000,-484.5,0.00015,2]
[421751947,1778105556000,-350.0,0.00015232,2]
[421751944,1778105556000,-350.0,0.00015158,2]
[421751946,1778105556000,-1477.51403986,0.00015168,2]
[421751950,1778105556000,-500.0,0.00015429,2]
[421751952,1778105556000,-736.0,0.00015539,2]
[421751956,1778105556000,-823.0,0.00015874,2]
[421751963,1778105556000,-768.86,0.00016374,2]
[421751961,1778105556000,-283.55,0.00016202,2]
[421751960,1778105556000,-300.0,0.00016,2]
[421751962,1778105556000,-350.0,0.00016262,2]
[421751958,1778105556000,-1399.46,0.00015955,2]
[421751955,1778105556000,-300.0,0.00015821,2]
[421751957,1778105556000,-8959.94759775,0.00015908,2]
[421751965,1778105556000,-186.53575633,0.00016438,2]
[421751964,1778105556000,-658.5,0.00016438,2]
[421751966,1778105556000,-900.0,0.00016438,2]
[421751967,1778105556000,-500.0,0.00016438,2]
[421751948,1778105556000,-606.5595874,0.00015317,2]
[421751949,1778105556000,-350.0,0.00015331,2]
[421751959,1778105556000,-1515.0,0.00015975,5]
[421751951,1778105556000,-350.0,0.00015463,2]
[421751928,1778105556000,-83179.432742,0.00015,2]
[421751945,1778105556000,-514.51073399,0.00015168,2]
[421751930,1778105556000,-163.59,0.00012657,2]
[421751932,1778105556000,-937804.50113609,0.00015,2]
[421751938,1778105556000,-151.0,0.00015,2]
[421751933,1778105556000,-151.0,0.00015,2]
[421751941,1778105556000,-500.0,0.00015043,2]
[421751934,1778105556000,-151.0,0.00015,2]
[421751931,1778105556000,-26112.17890073,0.00015,2]
[421751935,1778105556000,-151.0,0.00015,2]
[421751939,1778105556000,-151.0,0.00015,2]
[421751940,1778105556000,-151.0,0.00015,2]
[421751936,1778105556000,-151.0,0.00015,2]
[421751943,1778105556000,-350.0,0.00015104,2]
[421751953,1778105556000,-350.0,0.00015574,2]
[421751954,1778105556000,-350.0,0.00015678,2]
[421751937,1778105556000,-151.0,0.00015,2]
[421751942,1778105556000,-900.0,0.00015068,2]
[421752007,1778105557000,-160.0,0.00018876,2]
[421752001,1778105557000,-300.0,0.00018532,2]
[421752005,1778105557000,-300.0,0.00018799,2]
[421752006,1778105557000,-214.60306816,0.00018876,2]
[421752004,1778105557000,-3203.48,0.00018533,2]
[421752003,1778105557000,-151.0,0.00018533,2]
[421751999,1778105557000,-89398.23,0.00018356,2]
[421752000,1778105557000,-658.5,0.0001841,2]
[421752013,1778105557000,-657.0,0.00019,2]
[421751997,1778105557000,-151.0,0.00018356,2]
[421752002,1778105557000,-151.0,0.00018533,2]
[421752017,1778105557000,-10000.0,0.00019042,2]
[421752019,1778105557000,-455.74290845,0.000191,2]
[421752009,1778105557000,-455.74290845,0.000189,2]
[421752015,1778105557000,-300.0,0.00019041,2]
[421752010,1778105557000,-253.0,0.00019,2]
[421752016,1778105557000,-4927.4593,0.00019042,2]
[421752018,1778105557000,-506.67048613,0.00019067,2]
[421752012,1778105557000,-201.0,0.00019,2]
[421752008,1778105557000,-207.86895535,0.00018876,2]
[421752020,1778105557000,-1613.0,0.0001913,2]
[421752014,1778105557000,-3978.57724483,0.00019,2]
[421752011,1778105557000,-166.0,0.00019,2]
[421752023,1778105557000,-283.55,0.00019442,2]
[421752033,1778105557000,-200.97456132,0.00019949,5]
[421751998,1778105557000,-151.0,0.00018356,2]
[421752021,1778105557000,-455.74290845,0.000193,2]
[421751993,1778105557000,-500.0,0.00018355,2]
[421751978,1778105557000,-1418.55,0.00017572,2]
[421751991,1778105557000,-252.52,0.00018292,2]
[421751968,1778105557000,-2000.0,0.00016471,2]
[421751970,1778105557000,-402.62968383,0.00016661,2]
[421751971,1778105557000,-3819.0,0.000167,2]
[421751969,1778105557000,-252.52,0.00016629,2]
[421751973,1778105557000,-161.96,0.00016901,2]
[421751974,1778105557000,-759.0,0.00016943,2]
[421751976,1778105557000,-1152.0,0.00017426,2]
[421751979,1778105557000,-13874.59,0.00017572,2]
[421751980,1778105557000,-1204.0,0.00017582,5]
[421752022,1778105557000,-455.74290845,0.000194,2]
[421751983,1778105557000,-150.99,0.00017728,2]
[421751972,1778105557000,-500.0,0.00016795,2]
[421751992,1778105557000,-151.0,0.00018353,2]
[421751982,1778105557000,-1065.89874317,0.00017655,2]
[421751975,1778105557000,-243.57107582,0.00016986,2]
[421751984,1778105557000,-4999.99,0.00017728,2]
[421751977,1778105557000,-300.0,0.00017571,2]
[421751986,1778105557000,-283.55,0.00017822,2]
[421751985,1778105557000,-157.04146425,0.000178,2]
[421751996,1778105557000,-151.0,0.00018356,2]
[421751990,1778105557000,-500.0,0.00018234,2]
[421751987,1778105557000,-8959.94759775,0.0001787,2]
[421751994,1778105557000,-300.0,0.00018355,2]
[421751989,1778105557000,-2000.0,0.00018118,2]
[421751988,1778105557000,-350.0,0.00018,2]
[421751995,1778105557000,-300.0,0.00018355,2]
[421751981,1778105557000,-1000.0,0.000176,2]
[421752031,1778105557000,-413.34775141,0.00019948,2]
[421752061,1778105557000,-1739.0,0.00021001,2]
[421752032,1778105557000,-1122.71385098,0.00019949,5]
[421752060,1778105557000,-657.0,0.00021,2]
[421752056,1778105557000,-157.04146425,0.00020852,2]
[421752059,1778105557000,-201.0,0.00021,2]
[421752065,1778105557000,-5000.0,0.00021918,2]
[421752058,1778105557000,-166.0,0.00021,2]
[421752064,1778105557000,-1002.61,0.00021918,2]
[421752062,1778105557000,-1065.89874317,0.00021362,2]
[421752063,1778105557000,-8959.94759775,0.00021793,2]
[421752066,1778105557000,-163.0,0.00021947,3]
[421752069,1778105557000,-166.0,0.00022,2]
[421752068,1778105557000,-450.0,0.00022,2]
[421752070,1778105557000,-201.0,0.00022,2]
[421752067,1778105557000,-253.0,0.00022,2]
[421752073,1778105557000,-658.5,0.00022353,2]
[421752072,1778105557000,-165.66,0.00022,2]
[421752075,1778105557000,-166.0,0.00023,2]
[421752078,1778105557000,-417.0,0.00023156,2]
[421752077,1778105557000,-657.0,0.00023,2]
[421752074,1778105557000,-253.0,0.00023,2]
[421752079,1778105557000,-506.67048613,0.00023233,2]
[421752081,1778105557000,-200.0,0.0002382,2]
[421752083,1778105557000,-275.0,0.00023836,2]
[421752080,1778105557000,-8959.94759775,0.00023754,2]
[421752082,1778105557000,-300.0,0.00023835,2]
[421752084,1778105557000,-150.0,0.00023836,2]
[421752026,1778105557000,-8959.94759775,0.00019831,2]
[421752076,1778105557000,-201.0,0.00023,2]
[421752057,1778105557000,-253.0,0.00021,2]
[421752071,1778105557000,-657.0,0.00022,2]
[421752049,1778105557000,-166.0,0.0002,2]
[421752030,1778105557000,-151.0,0.00019947,2]
[421752053,1778105557000,-7918.97824916,0.0002,2]
[421752028,1778105557000,-2700.0,0.000199,7]
[421752029,1778105557000,-151.0,0.00019947,2]
[421752024,1778105557000,-455.74290845,0.000196,2]
[421752025,1778105557000,-2000.0,0.00019765,2]
[421752027,1778105557000,-4986.65705926,0.000199,3]
[421752035,1778105557000,-300.0,0.00019949,2]
[421752034,1778105557000,-1044.51161838,0.00019949,5]
[421752044,1778105557000,-197.268749,0.0002,2]
[421752037,1778105557000,-252.52,0.00019955,2]
[421752038,1778105557000,-500.0,0.0002,2]
[421752040,1778105557000,-500.0,0.0002,2]
[421752036,1778105557000,-276950.9966035,0.0001995,15]
[421752039,1778105557000,-500.0,0.0002,2]
[421752048,1778105557000,-400.0,0.0002,2]
[421752043,1778105557000,-160.39641372,0.0002,2]
[421752055,1778105557000,-658.5,0.00020381,2]
[421752054,1778105557000,-161.96,0.00020282,2]
[421752052,1778105557000,-657.0,0.0002,2]
[421752050,1778105557000,-201.0,0.0002,2]
[421752051,1778105557000,-1487.46726571,0.0002,5]
[421752045,1778105557000,-150.0,0.0002,2]
[421752046,1778105557000,-300.0,0.0002,2]
[421752041,1778105557000,-500.0,0.0002,2]
[421752042,1778105557000,-500.0,0.0002,2]
[421752047,1778105557000,-253.0,0.0002,2]
[421752129,1778105558000,-156.01,0.00024658,2]
[421752120,1778105558000,-151.0,0.00024658,2]
[421752121,1778105558000,-151.0,0.00024658,2]
[421752123,1778105558000,-151.0,0.00024658,2]
[421752122,1778105558000,-151.0,0.00024658,2]
[421752119,1778105558000,-151.0,0.00024658,2]
[421752116,1778105558000,-254.06,0.00024658,2]
[421752124,1778105558000,-151.0,0.00024658,2]
[421752114,1778105558000,-537.56277695,0.0002461,2]
[421752117,1778105558000,-1000.0,0.00024658,2]
[421752127,1778105558000,-153.41,0.00024658,2]
[421752118,1778105558000,-151.0,0.00024658,2]
[421752130,1778105558000,-502.1732365,0.0002466,2]
[421752144,1778105558000,-1804.99631028,0.00024857,2]
[421752131,1778105558000,-200.0,0.00024668,2]
[421752128,1778105558000,-152.22,0.00024658,2]
[421752132,1778105558000,-200.0,0.00024685,2]
[421752133,1778105558000,-200.0,0.00024685,2]
[421752136,1778105558000,-200.0,0.00024685,2]
[421752134,1778105558000,-200.0,0.00024685,2]
[421752137,1778105558000,-200.0,0.00024685,2]
[421752135,1778105558000,-200.0,0.00024685,2]
[421752141,1778105558000,-502.1732365,0.00024692,2]
[421752140,1778105558000,-502.1732365,0.00024691,2]
[421752139,1778105558000,-160.0,0.00024685,2]
[421752125,1778105558000,-151.0,0.00024658,2]
[421752138,1778105558000,-200.0,0.00024685,2]
[421752126,1778105558000,-285.992992,0.00024658,2]
[421752088,1778105558000,-150.0,0.00023836,2]
[421752111,1778105558000,-875.0,0.00024392,2]
[421752085,1778105558000,-173.908,0.00023836,2]
[421752089,1778105558000,-150.0,0.00023836,2]
[421752087,1778105558000,-150.0,0.00023836,2]
[421752086,1778105558000,-150.0,0.00023836,2]
[421752091,1778105558000,-925.0,0.00023836,2]
[421752101,1778105558000,-658.5,0.00024324,2]
[421752090,1778105558000,-150.0,0.00023836,2]
[421752093,1778105558000,-3536.0,0.00023836,2]
[421752095,1778105558000,-157.04146425,0.00023904,2]
[421752092,1778105558000,-598.0,0.00023836,2]
[421752097,1778105558000,-166.98826873,0.00024,2]
[421752096,1778105558000,-259.31055111,0.00024,2]
[421752094,1778105558000,-150.0,0.00023836,2]
[421752098,1778105558000,-207.0,0.00024,2]
[421752100,1778105558000,-502.1732365,0.00024317,2]
[421752099,1778105558000,-674.91143372,0.00024,2]
[421752103,1778105558000,-1050.0,0.00024392,2]
[421752104,1778105558000,-1050.0,0.00024392,2]
[421752102,1778105558000,-1050.0,0.00024392,2]
[421752113,1778105558000,-537.56277695,0.0002449,2]
[421752142,1778105558000,-666.37419853,0.00024707,2]
[421752109,1778105558000,-1050.0,0.00024392,2]
[421752105,1778105558000,-1050.0,0.00024392,2]
[421752112,1778105558000,-502.1732365,0.00024402,2]
[421752110,1778105558000,-1050.0,0.00024392,2]
[421752108,1778105558000,-1050.0,0.00024392,2]
[421752106,1778105558000,-1050.0,0.00024392,2]
[421752115,1778105558000,-150.0,0.00024658,2]
[421752143,1778105558000,-502.1732365,0.00024812,2]
[421752107,1778105558000,-1050.0,0.00024392,2]
[421752145,1778105558000,-508.93896894,0.0002489,2]
[421752179,1778105558000,-800.0,0.00025647,2]
[421752184,1778105558000,-329.0,0.00025647,2]
[421752185,1778105558000,-1804.99631028,0.00025655,2]
[421752182,1778105558000,-800.0,0.00025647,2]
[421752181,1778105558000,-800.0,0.00025647,2]
[421752180,1778105558000,-800.0,0.00025647,2]
[421752177,1778105558000,-800.0,0.00025647,2]
[421752197,1778105558000,-166.74,0.00026137,2]
[421752187,1778105558000,-549.0004957,0.000257,2]
[421752186,1778105558000,-502.1732365,0.00025662,2]
[421752191,1778105558000,-153.41,0.00025875,7]
[421752189,1778105558000,-653.0,0.00025754,10]
[421752190,1778105558000,-502.1732365,0.00025768,2]
[421752193,1778105558000,-218.90906031,0.00026,2]
[421752188,1778105558000,-8959.94759775,0.00025716,2]
[421752198,1778105558000,-417.0,0.00026156,2]
[421752192,1778105558000,-607.62296641,0.0002599,2]
[421752195,1778105558000,-549.0004957,0.00026063,2]
[421752196,1778105558000,-549.0004957,0.00026071,2]
[421752194,1778105558000,-152.22,0.00026027,2]
[421752199,1778105558000,-153.41,0.00026179,30]
[421752202,1778105558000,-200.0,0.00026365,2]
[421752200,1778105558000,-549.0004957,0.00026225,2]
[421752203,1778105558000,-602.82863943,0.00026469,2]
[421752201,1778105558000,-658.5,0.00026296,2]
[421752204,1778105558000,-153.41,0.00026484,2]
[421752146,1778105558000,-502.1732365,0.00024915,2]
[421752178,1778105558000,-800.0,0.00025647,2]
[421752183,1778105558000,-800.0,0.00025647,2]
[421752205,1778105558000,-152.22,0.00026484,7]
[421752176,1778105558000,-800.0,0.00025647,2]
[421752174,1778105558000,-537.56277695,0.00025582,2]
[421752148,1778105558000,-153.41,0.00024962,7]
[421752149,1778105558000,-169.18876038,0.00025,60]
[421752153,1778105558000,-1065.89874317,0.0002507,2]
[421752150,1778105558000,-624.66910915,0.00025,5]
[421752152,1778105558000,-537.56277695,0.00025032,2]
[421752154,1778105558000,-787.0,0.00025094,10]
[421752151,1778105558000,-4835.38029792,0.00025,3]
[421752155,1778105558000,-160.0,0.000251,3]
[421752159,1778105558000,-250.0,0.00025205,2]
[421752156,1778105558000,-152.22,0.00025114,7]
[421752157,1778105558000,-666.37419853,0.0002519,2]
[421752158,1778105558000,-549.0004957,0.00025196,2]
[421752160,1778105558000,-537.56277695,0.00025253,2]
[421752147,1778105558000,-502.1732365,0.00024924,2]
[421752165,1778105558000,-502.1732365,0.00025357,2]
[421752162,1778105558000,-502.1732365,0.00025276,2]
[421752175,1778105558000,-800.0,0.00025647,2]
[421752171,1778105558000,-152.22,0.00025571,30]
[421752167,1778105558000,-502.1732365,0.00025512,2]
[421752169,1778105558000,-537.56277695,0.00025571,2]
[421752172,1778105558000,-156.01,0.00025571,7]
[421752168,1778105558000,-200.0,0.00025516,2]
[421752164,1778105558000,-537.56277695,0.00025354,2]
[421752170,1778105558000,-153.41,0.00025571,2]
[421752161,1778105558000,-153.41,0.00025266,30]
[421752173,1778105558000,-502.1732365,0.00025576,2]
[421752163,1778105558000,-502.1732365,0.00025322,2]
[421752166,1778105558000,-1804.99631028,0.00025379,2]
[421752244,1778105559000,-1015.9,0.00027397,2]
[421752232,1778105559000,-150.0,0.00027298,2]
[421752236,1778105559000,-151.0,0.00027394,7]
[421752240,1778105559000,-152.22,0.00027397,2]
[421752239,1778105559000,-153.41,0.00027397,2]
[421752241,1778105559000,-156.01,0.00027397,2]
[421752242,1778105559000,-1500.0,0.00027397,2]
[421752245,1778105559000,-300.0,0.00027397,2]
[421752243,1778105559000,-1000.0,0.00027397,20]
[421752234,1778105559000,-199.03596416,0.000273,30]
[421752235,1778105559000,-260.0,0.0002737,2]
[421752258,1778105559000,-536.426534,0.00027397,2]
[421752257,1778105559000,-536.426534,0.00027397,2]
[421752251,1778105559000,-536.426534,0.00027397,2]
[421752246,1778105559000,-254.06,0.00027397,2]
[421752248,1778105559000,-536.426534,0.00027397,2]
[421752249,1778105559000,-536.426534,0.00027397,2]
[421752256,1778105559000,-536.426534,0.00027397,2]
[421752254,1778105559000,-536.426534,0.00027397,2]
[421752255,1778105559000,-536.426534,0.00027397,2]
[421752252,1778105559000,-536.426534,0.00027397,2]
[421752238,1778105559000,-189.74283871,0.00027397,7]
[421752253,1778105559000,-536.426534,0.00027397,2]
[421752247,1778105559000,-536.426534,0.00027397,2]
[421752237,1778105559000,-194.45858391,0.00027397,2]
[421752221,1778105559000,-276.0,0.00027123,2]
[421752229,1778105559000,-197.0,0.00027192,2]
[421752250,1778105559000,-536.426534,0.00027397,2]
[421752207,1778105559000,-549.0004957,0.00026514,2]
[421752208,1778105559000,-602.82863943,0.00026562,2]
[421752210,1778105559000,-549.0004957,0.00026659,2]
[421752206,1778105559000,-156.01,0.00026484,30]
[421752211,1778105559000,-153.41,0.00026788,7]
[421752209,1778105559000,-602.82863943,0.00026626,2]
[421752214,1778105559000,-925.0,0.00026836,2]
[421752215,1778105559000,-3536.0,0.00026836,2]
[421752223,1778105559000,-474.0,0.00027123,2]
[421752218,1778105559000,-153.41,0.00027093,30]
[421752233,1778105559000,-290.0,0.00027298,2]
[421752216,1778105559000,-152.22,0.0002694,30]
[421752217,1778105559000,-1680.021565,0.00027,2]
[421752224,1778105559000,-316.07443529,0.00027123,2]
[421752219,1778105559000,-157.1,0.00027116,30]
[421752225,1778105559000,-299.0,0.00027123,2]
[421752220,1778105559000,-317.07443529,0.00027123,2]
[421752222,1778105559000,-3259.0,0.00027123,2]
[421752230,1778105559000,-543.0,0.00027194,2]
[421752226,1778105559000,-325.26695733,0.00027123,2]
[421752227,1778105559000,-870.29106879,0.00027123,2]
[421752231,1778105559000,-200.0,0.00027213,2]
[421752228,1778105559000,-760.0,0.00027123,2]
[421752213,1778105559000,-150.0,0.00026836,2]
[421752260,1778105559000,-536.426534,0.00027397,2]
[421752212,1778105559000,-150.0,0.00026836,2]
[421752271,1778105559000,-81503.25,0.000274,7]
[421752297,1778105559000,-250.0,0.00027829,2]
[421752288,1778105559000,-200.0,0.00027629,2]
[421752294,1778105559000,-500.0,0.000278,7]
[421752286,1778105559000,-200.0,0.00027629,2]
[421752289,1778105559000,-200.0,0.00027629,2]
[421752290,1778105559000,-200.0,0.00027629,2]
[421752291,1778105559000,-270.0,0.00027629,2]
[421752292,1778105559000,-8959.94759775,0.00027677,2]
[421752299,1778105559000,-271.0,0.00027829,2]
[421752298,1778105559000,-250.0,0.00027829,2]
[421752300,1778105559000,-150.0,0.00027829,2]
[421752295,1778105559000,-250.0,0.00027829,2]
[421752301,1778105559000,-150.0,0.00027829,2]
[421752303,1778105559000,-150.0,0.00027829,2]
[421752305,1778105559000,-268.0,0.00027829,2]
[421752307,1778105559000,-150.0,0.00027875,2]
[421752312,1778105559000,-350.0,0.00027972,2]
[421752306,1778105559000,-152.22,0.00027854,7]
[421752308,1778105559000,-150.0,0.00027875,2]
[421752304,1778105559000,-150.0,0.00027829,2]
[421752311,1778105559000,-350.0,0.00027972,2]
[421752310,1778105559000,-212.0,0.00027875,2]
[421752313,1778105559000,-350.0,0.00027972,2]
[421752259,1778105559000,-536.426534,0.00027397,2]
[421752302,1778105559000,-150.0,0.00027829,2]
[421752296,1778105559000,-250.0,0.00027829,2]
[421752309,1778105559000,-150.0,0.00027875,2]
[421752287,1778105559000,-200.0,0.00027629,2]
[421752270,1778105559000,-157.75,0.000274,7]
[421752293,1778105559000,-153.41,0.00027701,7]
[421752264,1778105559000,-536.426534,0.00027397,2]
[421752261,1778105559000,-536.426534,0.00027397,2]
[421752262,1778105559000,-536.426534,0.00027397,2]
[421752263,1778105559000,-536.426534,0.00027397,2]
[421752266,1778105559000,-536.426531,0.00027397,2]
[421752267,1778105559000,-151.0,0.00027397,2]
[421752268,1778105559000,-186.06,0.00027397,2]
[421752265,1778105559000,-536.426534,0.00027397,2]
[421752272,1778105559000,-506.67048613,0.000274,2]
[421752273,1778105559000,-392.0,0.00027404,10]
[421752269,1778105559000,-15356.77,0.00027397,10]
[421752282,1778105559000,-181.0,0.00027617,2]
[421752285,1778105559000,-200.0,0.00027629,2]